fUST/lending_fUST_20240826
["ID","MTS","AMOUNT","RATE_DAILY","PERIOD"]
[336035408,1724675440238,-500.0,0.00012342,2]
[336035410,1724675440251,-590.1,0.00012342,2]
[336035412,1724675440266,-500.0,0.00012342,2]
[336035414,1724675440275,-562.71,0.00012342,2]
[336035416,1724675440285,-580.69,0.00012342,2]
[336035418,1724675440295,-726.6,0.00012342,2]
[336035420,1724675440305,-500.0,0.00012342,2]
[336035422,1724675440315,-502.12998147,0.00012342,2]
[336035424,1724675440324,-1277.96,0.00012342,2]
[336035426,1724675440334,-1277.96,0.00012342,2]
[336035428,1724675440344,-593.42,0.00012342,2]
[336035430,1724675440353,-500.0,0.00012342,2]
[336035432,1724675440363,-500.0,0.00012342,2]
[336035434,1724675440373,-24198.3089154,0.00012342,2]
[336035436,1724675440383,-36297.4633731,0.00012343,2]
[336035438,1724675440392,-761.32,0.0001235,2]
[336035440,1724675440402,-761.32,0.0001235,2]
[336035442,1724675440412,-500.0,0.0001235,2]
[336035444,1724675440421,-500.0,0.0001235,2]
[336035446,1724675440431,-846.81,0.0001235,2]
[336035448,1724675440441,-846.81,0.0001235,2]
[336035450,1724675440450,-1435.46298156,0.0001235,2]
[336035453,1724675440460,-1277.96,0.0001235,2]
[336035455,1724675440469,-1277.96,0.0001235,2]
[336035457,1724675440480,-1277.96,0.0001235,2]
[336035459,1724675440489,-1277.96,0.0001235,2]
[336035461,1724675440502,-1277.96,0.0001235,2]
[336035463,1724675440512,-1678.03637208,0.00012351,5]
[336035465,1724675440523,-500.0,0.00012351,2]
[336035467,1724675440537,-592.45,0.00012351,2]
[336035469,1724675440546,-764.19,0.00012351,2]
[336035471,1724675440556,-583.3183481,0.00012351,2]
[336035473,1724675440566,-500.0,0.00012351,2]
[336035475,1724675440576,-602.98,0.00012351,2]
[336035477,1724675440586,-500.0,0.00012351,2]
[336035479,1724675440595,-500.0,0.00012351,2]
[336035481,1724675440605,-500.0,0.00012351,2]
[336035483,1724675440618,-500.0,0.00012351,2]
[336035485,1724675440630,-500.0,0.00012351,2]
[336035487,1724675440639,-500.0,0.00012351,2]
[336035489,1724675440649,-500.0,0.00012351,2]
[336035491,1724675440658,-500.0,0.00012351,2]
[336035494,1724675440667,-500.0,0.00012351,2]
[336035496,1724675440677,-500.0,0.00012351,2]
[336035497,1724675440686,-500.0,0.00012351,2]
[336035499,1724675440695,-500.0,0.00012351,2]
[336035502,1724675440705,-500.0,0.00012351,2]
[336035504,1724675440715,-500.0,0.00012351,2]
[336035506,1724675440724,-500.0,0.00012351,2]
[336035508,1724675440734,-500.0,0.00012351,2]
[336035510,1724675440744,-500.47,0.00012351,2]
[336035512,1724675440755,-500.0,0.00012351,2]
[336035514,1724675440764,-500.0,0.00012351,2]
[336035516,1724675440774,-500.0,0.00012351,2]
[336035518,1724675440783,-500.0,0.00012351,2]
[336035520,1724675440792,-234.4346556,0.00012351,2]
[336035522,1724675440801,-500.0,0.00012351,2]
[336035524,1724675440811,-500.0,0.00012351,2]
[336035526,1724675440820,-532.77848873,0.00012351,2]
[336035528,1724675440830,-500.0,0.00012351,2]
[336035530,1724675440839,-500.0,0.00012351,2]
[336035532,1724675440848,-500.0,0.00012351,2]
[336035534,1724675440858,-500.0,0.00012351,2]
[336035536,1724675440867,-500.0,0.00012351,2]
[336035538,1724675440875,-500.0,0.00012351,2]
[336035540,1724675440884,-500.0,0.00012351,2]
[336035542,1724675440894,-500.0,0.00012351,2]
[336035544,1724675440903,-500.0,0.00012351,2]
[336035546,1724675440913,-500.0,0.00012351,2]
[336035548,1724675440923,-500.0,0.00012351,2]
[336035550,1724675440933,-677.23,0.00012351,2]
[336035552,1724675440942,-920.69,0.00012351,2]
[336035555,1724675440952,-500.0,0.00012351,2]
[336035557,1724675440961,-445.39185975,0.00012351,2]
[336035587,1724675441230,-54.60814025,0.00012351,2]
[336035589,1724675441241,-500.0,0.00012351,2]
[336035591,1724675441251,-500.0,0.00012351,2]
[336035593,1724675441261,-617.17,0.00012351,2]
[336035595,1724675441270,-500.0,0.00012351,2]
[336035597,1724675441279,-500.0,0.00012351,2]
[336035599,1724675441289,-500.0,0.00012351,2]
[336035601,1724675441298,-500.0,0.00012351,2]
[336035603,1724675441307,-500.0,0.00012351,2]
[336035605,1724675441316,-500.0,0.00012351,2]
[336035607,1724675441326,-202.29917704,0.00012351,2]
[336035609,1724675441335,-500.0,0.00012351,2]
[336035611,1724675441344,-500.0,0.00012351,2]
[336035613,1724675441353,-500.0,0.00012351,2]
[336035615,1724675441362,-500.0,0.00012351,2]
[336035617,1724675441371,-500.0,0.00012351,2]
[336035619,1724675441380,-283.92382111,0.00012351,2]
[336035620,1724675441390,-500.0,0.00012351,2]
[336035622,1724675441399,-500.0,0.00012351,2]
[336035624,1724675441408,-500.0,0.00012351,2]
[336035626,1724675441418,-500.0,0.00012351,2]
[336035628,1724675441427,-500.0,0.00012351,2]
[336035630,1724675441437,-500.0,0.00012351,2]
[336035632,1724675441446,-500.0,0.00012351,2]
[336035634,1724675441455,-500.44982316,0.00012351,2]
[336035636,1724675441465,-500.0,0.00012351,2]
[336035638,1724675441474,-203.1712821,0.00012351,2]
[336035640,1724675441483,-500.0,0.00012351,2]
[336035642,1724675441492,-1133.26,0.00012351,2]
[336035644,1724675441503,-500.0,0.00012351,2]
[336035646,1724675441513,-500.0,0.00012351,2]
[336035648,1724675441526,-500.0,0.00012351,2]
[336035650,1724675441543,-528.51238524,0.00012351,2]
[336035652,1724675441553,-501.097122,0.00012351,2]
[336035654,1724675441562,-500.0,0.00012351,2]
[336035656,1724675441573,-500.0,0.00012351,2]
[336035658,1724675441582,-500.0,0.00012351,2]
[336035660,1724675441592,-500.86077,0.00012351,2]
[336035662,1724675441601,-500.74342544,0.00012351,2]
[336035664,1724675441613,-500.0,0.00012351,2]
[336035666,1724675441622,-500.0,0.00012351,2]
[336035668,1724675441632,-500.0,0.00012351,2]
[336035670,1724675441642,-500.0,0.00012351,2]
[336035672,1724675441651,-500.0,0.00012351,2]
[336035674,1724675441661,-500.0,0.00012351,2]
[336035676,1724675441671,-500.0,0.00012351,2]
[336035678,1724675441681,-500.0,0.00012351,2]
[336035680,1724675441690,-500.0,0.00012351,2]
[336035682,1724675441700,-500.0,0.00012351,2]
[336035684,1724675441709,-547.96049857,0.00012351,2]
[336035686,1724675441718,-500.0,0.00012351,2]
[336035688,1724675441728,-761.32,0.00012351,2]
[336035690,1724675441737,-761.32,0.00012351,2]
[336035692,1724675441747,-1142.63,0.00012351,2]
[336035694,1724675441756,-500.32335848,0.00012351,2]
[336035696,1724675441765,-500.0,0.00012351,2]
[336035698,1724675441775,-500.0,0.00012351,2]
[336035700,1724675441784,-500.0,0.00012351,2]
[336035702,1724675441793,-500.52711479,0.00012351,2]
[336035704,1724675441802,-500.89650638,0.00012351,2]
[336035706,1724675441812,-598.05619566,0.00012351,2]
[336035708,1724675441821,-500.0,0.00012351,2]
[336035710,1724675441831,-500.0,0.00012351,2]
[336035712,1724675441840,-500.0,0.00012351,2]
[336035714,1724675441850,-500.0,0.00012351,2]
[336035716,1724675441859,-500.0,0.00012351,2]
[336035718,1724675441868,-500.0,0.00012351,2]
[336035720,1724675441877,-500.37794862,0.00012351,2]
[336035722,1724675441887,-500.0,0.00012351,2]
[336035724,1724675441896,-500.0,0.00012351,2]
[336035726,1724675441905,-500.0,0.00012351,2]
[336035728,1724675441914,-500.0,0.00012351,2]
[336035730,1724675441924,-500.0,0.00012351,2]
[336035732,1724675441933,-500.0,0.00012351,2]
[336035734,1724675441942,-500.0,0.00012351,2]
[336035736,1724675441951,-500.0,0.00012351,2]
[336035738,1724675441962,-500.0,0.00012351,2]
[336035740,1724675441972,-161.61119404,0.00012351,2]
[336035742,1724675441981,-501.5063266,0.00012351,2]
[336035744,1724675441990,-500.0,0.00012351,2]
[336035746,1724675442000,-500.0,0.00012351,2]
[336035748,1724675442010,-500.0,0.00012351,2]
[336035750,1724675442019,-530.11209033,0.00012351,2]
[336035752,1724675442028,-829.62,0.00012351,2]
[336035754,1724675442038,-500.0,0.00012351,2]
[336035756,1724675442048,-1207.61,0.00012351,2]
[336035758,1724675442057,-500.0,0.00012351,2]
[336035760,1724675442068,-500.0,0.00012351,2]
[336035762,1724675442078,-674.19,0.00012351,2]
[336035764,1724675442087,-500.0,0.00012351,2]
[336035766,1724675442096,-500.0,0.00012351,2]
[336035768,1724675442105,-500.0,0.00012351,2]
[336035770,1724675442118,-719.63,0.00012351,2]
[336035772,1724675442127,-500.0,0.00012351,2]
[336035773,1724675442137,-500.0,0.00012351,2]
[336035774,1724675442146,-295.15806935,0.00012351,2]
[336035775,1724675442155,-809.03,0.00012351,2]
[336035776,1724675442165,-500.0,0.00012351,2]
[336035777,1724675442174,-500.0,0.00012351,2]
[336035778,1724675442183,-500.0,0.00012351,2]
[336035779,1724675442192,-502.91890564,0.00012351,2]
[336035780,1724675442201,-500.0,0.00012351,2]
[336035781,1724675442211,-501.31729394,0.00012351,2]
[336035782,1724675442220,-500.0,0.00012351,2]
[336035783,1724675442229,-500.0,0.00012351,2]
[336035784,1724675442240,-275.79,0.00012351,2]
[336035785,1724675442259,-527.66,0.00012351,2]
[336035786,1724675442268,-993.62,0.00012351,2]
[336035787,1724675442278,-511.81065849,0.00012351,2]
[336035788,1724675442287,-500.0,0.00012351,2]
[336035790,1724675442297,-561.66,0.00012351,2]
[336035791,1724675442306,-537.19,0.00012351,2]
[336035793,1724675442315,-500.0,0.00012351,2]
[336035795,1724675442325,-500.0,0.00012351,2]
[336035797,1724675442334,-500.0,0.00012351,2]
[336035799,1724675442343,-500.0,0.00012351,2]
[336035801,1724675442352,-973.95,0.00012351,2]
[336035803,1724675442361,-500.0,0.00012351,2]
[336035805,1724675442370,-500.0,0.00012351,2]
[336035806,1724675442379,-606.12,0.00012351,2]
[336035808,1724675442388,-520.41606326,0.00012351,2]
[336035810,1724675442398,-597.09,0.00012351,2]
[336035812,1724675442407,-500.0,0.00012351,2]
[336035814,1724675442417,-500.0,0.00012351,2]
[336035817,1724675442426,-500.0,0.00012351,2]
[336035819,1724675442435,-1140.91,0.00012351,2]
[336035821,1724675442445,-500.0,0.00012351,2]
[336035823,1724675442454,-500.0,0.00012351,2]
[336035824,1724675442463,-500.0,0.00012351,2]
[336035827,1724675442472,-737.97,0.00012351,2]
[336035829,1724675442482,-500.0,0.00012351,2]
[336035831,1724675442491,-799.37,0.00012351,2]
[336035833,1724675442504,-500.0,0.00012351,2]
[336035835,1724675442514,-500.0,0.00012351,2]
[336035837,1724675442523,-500.0,0.00012351,2]
[336035839,1724675442535,-500.0,0.00012351,2]
[336035841,1724675442544,-776.62,0.00012351,2]
[336035843,1724675442553,-500.0,0.00012351,2]
[336035845,1724675442563,-500.0,0.00012351,2]
[336035847,1724675442573,-500.0,0.00012351,2]
[336035849,1724675442582,-519.42282598,0.00012351,2]
[336035851,1724675442592,-997.79,0.00012351,2]
[336035853,1724675442602,-500.0,0.00012351,2]
[336035855,1724675442614,-500.0,0.00012351,2]
[336035857,1724675442623,-667.27,0.00012351,2]
[336035859,1724675442633,-581.61,0.00012351,2]
[336035861,1724675442643,-500.0,0.00012351,2]
[336035863,1724675442652,-500.0,0.00012351,2]
[336035865,1724675442662,-519.7,0.00012351,2]
[336035867,1724675442671,-537.88016613,0.00012351,2]
[336035869,1724675442682,-500.0,0.00012351,2]
[336035872,1724675442691,-500.0,0.00012351,2]
[336035874,1724675442701,-500.0,0.00012351,2]
[336035876,1724675442710,-1429.06,0.00012351,2]
[336035878,1724675442720,-500.0,0.00012351,2]
[336035880,1724675442730,-969.99,0.00012351,2]
[336035882,1724675442739,-500.0,0.00012351,2]
[336035884,1724675442750,-500.0,0.00012351,2]
[336035886,1724675442759,-623.70342723,0.00012351,2]
[336035888,1724675442769,-500.0,0.00012351,2]
[336035890,1724675442778,-500.0,0.00012351,2]
[336035892,1724675442788,-500.0,0.00012351,2]
[336035894,1724675442797,-500.0,0.00012351,2]
[336035895,1724675442806,-500.0,0.00012351,2]
[336035897,1724675442816,-614.65,0.00012351,2]
[336035899,1724675442825,-500.0,0.00012351,2]
[336035901,1724675442835,-500.0,0.00012351,2]
[336035903,1724675442844,-856.96,0.00012351,2]
[336035905,1724675442853,-500.0,0.00012351,2]
[336035907,1724675442863,-500.0,0.00012351,2]
[336035909,1724675442872,-660.8,0.00012351,2]
[336035911,1724675442882,-500.0,0.00012351,2]
[336035913,1724675442891,-574.96,0.00012351,2]
[336035915,1724675442901,-266.65447245,0.00012351,2]
[336035917,1724675442910,-500.0,0.00012351,2]
[336035919,1724675442919,-644.91802753,0.00012351,2]
[336035921,1724675442928,-500.0,0.00012351,2]
[336035923,1724675442938,-500.0,0.00012351,2]
[336035925,1724675442947,-500.0,0.00012351,2]
[336035927,1724675442957,-500.0,0.00012351,2]
[336035930,1724675442967,-500.0,0.00012351,2]
[336035932,1724675442976,-887.08,0.00012351,2]
[336035934,1724675442986,-565.84,0.00012351,2]
[336035936,1724675442996,-502.93761345,0.00012351,2]
[336035938,1724675443005,-500.0,0.00012351,2]
[336035940,1724675443015,-542.05434122,0.00012351,2]
[336035942,1724675443025,-602.82,0.00012351,2]
[336035944,1724675443034,-500.0,0.00012351,2]
[336035946,1724675443044,-500.0,0.00012351,2]
[336035948,1724675443054,-500.0,0.00012351,2]
[336035950,1724675443064,-500.0,0.00012351,2]
[336035952,1724675443073,-502.90164632,0.00012351,2]
[336035954,1724675443083,-500.0,0.00012351,2]
[336035956,1724675443092,-832.72,0.00012351,2]
[336035958,1724675443102,-500.0,0.00012351,2]
[336035960,1724675443112,-500.0,0.00012351,2]
[336035962,1724675443121,-500.0,0.00012351,2]
[336035964,1724675443130,-541.16942906,0.00012351,2]
[336035966,1724675443141,-675.12,0.00012351,2]
[336035968,1724675443151,-1343.68,0.00012351,2]
[336035970,1724675443160,-500.0,0.00012351,2]
[336035972,1724675443170,-816.86,0.00012351,2]
[336035975,1724675443179,-500.0,0.00012351,2]
[336035978,1724675443188,-500.0,0.00012351,2]
[336035980,1724675443197,-769.1,0.00012351,2]
[336035982,1724675443206,-521.79832935,0.00012351,2]
[336035984,1724675443216,-2030.46,0.00012351,2]
[336035986,1724675443225,-500.0,0.00012351,2]
[336035988,1724675443234,-500.0,0.00012351,2]
[336035990,1724675443243,-500.0,0.00012351,2]
[336035992,1724675443258,-500.0,0.00012351,2]
[336035994,1724675443273,-500.0,0.00012351,2]
[336035996,1724675443282,-500.0,0.00012351,2]
[336035998,1724675443291,-500.0,0.00012351,2]
[336036000,1724675443301,-500.0,0.00012351,2]
[336036002,1724675443310,-500.0,0.00012351,2]
[336036004,1724675443319,-564.63,0.00012351,2]
[336036006,1724675443328,-500.0,0.00012351,2]
[336036008,1724675443337,-500.0,0.00012351,2]
[336036010,1724675443346,-500.0,0.00012351,2]
[336036012,1724675443356,-500.0,0.00012351,2]
[336036014,1724675443365,-732.07,0.00012351,2]
[336036016,1724675443375,-500.0,0.00012351,2]
[336036018,1724675443385,-551.548176,0.00012351,2]
[336036020,1724675443394,-500.0,0.00012351,2]
[336036022,1724675443403,-817.87,0.00012351,2]
[336036024,1724675443413,-500.0,0.00012351,2]
[336036026,1724675443423,-507.19310601,0.00012351,2]
[336036028,1724675443434,-500.0,0.00012351,2]
[336036030,1724675443444,-518.00710361,0.00012351,2]
[336036032,1724675443454,-500.0,0.00012351,2]
[336036034,1724675443463,-500.0,0.00012351,2]
[336036036,1724675443473,-800.44,0.00012351,2]
[336036038,1724675443482,-500.6739883,0.00012351,2]
[336036040,1724675443492,-500.0,0.00012351,2]
[336036042,1724675443502,-500.0,0.00012351,2]
[336036044,1724675443512,-500.0,0.00012351,2]
[336036046,1724675443524,-513.71,0.00012351,2]
[336036064,1724675443681,-520.86,0.00012351,2]
[336036067,1724675443719,-500.0,0.00012351,2]
[336036069,1724675443729,-205.91878196,0.00012351,2]
[336036071,1724675443739,-542.46,0.00012351,2]
[336036073,1724675443754,-500.0,0.00012351,2]
[336036075,1724675443764,-500.0,0.00012351,2]
[336036077,1724675443774,-568.39,0.00012351,2]
[336036079,1724675443784,-500.0,0.00012351,2]
[336036081,1724675443793,-500.0,0.00012351,2]
[336036083,1724675443803,-500.0,0.00012351,2]
[336036085,1724675443813,-500.0,0.00012351,2]
[336036087,1724675443823,-500.0,0.00012351,2]
[336036089,1724675443834,-1269.35,0.00012351,2]
[336036091,1724675443844,-838.77,0.00012351,2]
[336036093,1724675443853,-531.20908801,0.00012351,2]
[336036095,1724675443863,-600.48,0.00012351,2]
[336036097,1724675443873,-754.28,0.00012351,2]
[336036099,1724675443883,-1255.75,0.00012351,2]
[336036101,1724675443893,-500.0,0.00012351,2]
[336036103,1724675443902,-721.34,0.00012351,2]
[336036105,1724675443911,-500.0,0.00012351,2]
[336036107,1724675443921,-500.0,0.00012351,2]
[336036109,1724675443931,-500.0,0.00012351,2]
[336036111,1724675443940,-846.81,0.00012351,2]
[336036113,1724675443950,-846.81,0.00012351,2]
[336036115,1724675443960,-996.7,0.00012351,2]
[336036117,1724675443969,-500.0,0.00012351,2]
[336036119,1724675443979,-503.00657275,0.00012351,2]
[336036121,1724675443988,-506.19896269,0.00012351,2]
[336036123,1724675443999,-519.45321061,0.00012351,2]
[336036125,1724675444008,-3376.24,0.00012351,2]
[336036127,1724675444018,-585.11,0.00012351,2]
[336036129,1724675444027,-641.25,0.00012351,2]
[336036131,1724675444036,-500.0,0.00012351,2]
[336036133,1724675444045,-500.0,0.00012351,2]
[336036135,1724675444054,-500.0,0.00012351,2]
[336036137,1724675444065,-889.08,0.00012351,2]
[336036139,1724675444075,-500.0,0.00012351,2]
[336036141,1724675444085,-674.63,0.00012351,2]
[336036143,1724675444094,-500.34294952,0.00012351,2]
[336036145,1724675444104,-770.26,0.00012351,2]
[336036147,1724675444114,-500.0,0.00012351,2]
[336036149,1724675444124,-500.0,0.00012351,2]
[336036151,1724675444133,-500.0,0.00012351,2]
[336036153,1724675444143,-500.0,0.00012351,2]
[336036155,1724675444152,-500.0,0.00012351,2]
[336036157,1724675444162,-500.0,0.00012351,2]
[336036159,1724675444171,-501.58266784,0.00012351,2]
[336036161,1724675444181,-500.0,0.00012351,2]
[336036163,1724675444191,-500.0,0.00012351,2]
[336036165,1724675444201,-500.0,0.00012351,2]
[336036167,1724675444211,-508.0764141,0.00012351,2]
[336036170,1724675444221,-500.0,0.00012351,2]
[336036171,1724675444230,-516.88674536,0.00012351,2]
[336036173,1724675444240,-567.85,0.00012351,2]
[336036176,1724675444251,-505.70093749,0.00012351,2]
[336036178,1724675444260,-500.0,0.00012351,2]
[336036180,1724675444271,-500.0,0.00012351,2]
[336036182,1724675444280,-500.0,0.00012351,2]
[336036184,1724675444291,-500.0,0.00012351,2]
[336036186,1724675444300,-500.0,0.00012351,2]
[336036188,1724675444310,-500.0,0.00012351,2]
[336036190,1724675444320,-657.37,0.00012351,2]
[336036192,1724675444329,-500.0,0.00012351,2]
[336036194,1724675444338,-500.0,0.00012351,2]
[336036195,1724675444348,-500.0,0.00012351,2]
[336036198,1724675444358,-500.0,0.00012351,2]
[336036200,1724675444368,-656.07,0.00012351,2]
[336036202,1724675444378,-500.0,0.00012351,2]
[336036204,1724675444388,-500.0,0.00012351,2]
[336036206,1724675444397,-500.0,0.00012351,2]
[336036208,1724675444406,-500.0,0.00012351,2]
[336036210,1724675444416,-789.07,0.00012351,2]
[336036211,1724675444426,-500.0,0.00012351,2]
[336036213,1724675444435,-500.0,0.00012351,2]
[336036215,1724675444445,-508.04033271,0.00012351,2]
[336036217,1724675444457,-500.0,0.00012351,2]
[336036219,1724675444467,-500.0,0.00012351,2]
[336036222,1724675444476,-500.0,0.00012351,2]
[336036224,1724675444486,-500.0,0.00012351,2]
[336036226,1724675444498,-1277.96,0.00012351,2]
[336036228,1724675444508,-1277.96,0.00012351,2]
[336036230,1724675444517,-508.68888417,0.00012351,2]
[336036231,1724675444527,-500.0,0.00012351,2]
[336036233,1724675444541,-663.82,0.00012351,2]
[336036235,1724675444551,-512.19108395,0.00012351,2]
[336036238,1724675444561,-516.68760384,0.00012351,2]
[336036240,1724675444571,-509.30452078,0.00012351,2]
[336036242,1724675444582,-500.0,0.00012351,2]
[336036244,1724675444593,-500.0,0.00012352,2]
[336036246,1724675444602,-500.0,0.00012352,2]
[336036248,1724675444613,-500.0,0.00012352,2]
[336036250,1724675444623,-500.0,0.00012352,2]
[336036252,1724675444633,-529.92035407,0.00012352,2]
[336036254,1724675444643,-500.0,0.00012352,2]
[336036256,1724675444652,-572.86264471,0.00012352,2]
[336036284,1724675445013,-501.7957613,0.00012351,2]
[336036285,1724675445023,-109.04735529,0.00012352,2]
[336036286,1724675445033,-599.43,0.00012352,2]
[336036287,1724675445043,-599.43,0.00012352,2]
[336036288,1724675445052,-500.0,0.00012352,2]
[336036289,1724675445062,-500.0,0.00012352,2]
[336036290,1724675445071,-906.16,0.00012352,2]
[336036291,1724675445081,-500.0,0.00012352,2]
[336036292,1724675445090,-500.0,0.00012352,2]
[336036293,1724675445100,-500.0,0.00012352,2]
[336036294,1724675445110,-514.86,0.00012352,2]
[336036295,1724675445119,-500.0,0.00012352,2]
[336036296,1724675445128,-500.0,0.00012352,2]
[336036297,1724675445138,-1084.05,0.00012352,2]
[336036298,1724675445149,-786.66,0.00012352,2]
[336036299,1724675445158,-539.51,0.00012352,2]
[336036300,1724675445167,-500.0,0.00012352,2]
[336036301,1724675445177,-914.1,0.00012352,2]
[336036302,1724675445186,-500.0,0.00012352,2]
[336036303,1724675445196,-500.0,0.00012352,2]
[336036304,1724675445206,-500.0,0.00012352,2]
[336036305,1724675445215,-500.0,0.00012352,2]
[336036306,1724675445224,-636.62,0.00012352,2]
[336036307,1724675445234,-858.43,0.00012352,2]
[336036308,1724675445244,-500.0,0.00012352,2]
[336036309,1724675445255,-507.06596383,0.00012352,2]
[336036311,1724675445265,-606.23,0.00012352,2]
[336036312,1724675445275,-728.62,0.00012352,2]
[336036313,1724675445285,-500.0,0.00012352,2]
[336036314,1724675445294,-1181.8,0.00012352,2]
[336036315,1724675445304,-761.32,0.00012352,2]
[336036316,1724675445313,-761.32,0.00012352,2]
[336036317,1724675445323,-761.32,0.00012352,2]
[336036318,1724675445333,-761.32,0.00012352,2]
[336036319,1724675445342,-761.32,0.00012352,2]
[336036320,1724675445352,-500.0,0.00012352,2]
[336036321,1724675445361,-1148.29,0.00012352,2]
[336036322,1724675445370,-500.0,0.00012352,2]
[336036323,1724675445380,-642.72,0.00012352,2]
[336036324,1724675445389,-500.0,0.00012352,2]
[336036325,1724675445399,-1120.46,0.00012352,2]
[336036326,1724675445408,-500.0,0.00012352,2]
[336036327,1724675445418,-500.0,0.00012352,2]
[336036328,1724675445427,-500.0,0.00012352,2]
[336036329,1724675445437,-1131.93,0.00012352,2]
[336036330,1724675445446,-500.0,0.00012352,2]
[336036331,1724675445456,-500.0,0.00012352,2]
[336036332,1724675445465,-500.0,0.00012352,2]
[336036333,1724675445474,-1256.67,0.00012352,2]
[336036334,1724675445484,-500.0,0.00012352,2]
[336036335,1724675445493,-1043.27,0.00012352,2]
[336036336,1724675445505,-545.4,0.00012352,2]
[336036337,1724675445514,-604.74,0.00012352,2]
[336036338,1724675445523,-1070.66,0.00012352,2]
[336036339,1724675445536,-500.0,0.00012352,2]
[336036340,1724675445546,-719.55,0.00012352,2]
[336036341,1724675445555,-500.0,0.00012352,2]
[336036342,1724675445565,-668.35,0.00012352,2]
[336036343,1724675445575,-631.58,0.00012352,2]
[336036344,1724675445585,-500.0,0.00012352,2]
[336036345,1724675445594,-500.0,0.00012352,2]
[336036346,1724675445605,-500.0,0.00012352,2]
[336036347,1724675445615,-1135.77,0.00012352,2]
[336036348,1724675445624,-500.0,0.00012352,2]
[336036349,1724675445634,-500.0,0.00012352,2]
[336036350,1724675445643,-500.0,0.00012352,2]
[336036351,1724675445653,-500.0,0.00012352,2]
[336036352,1724675445662,-577.74,0.00012352,2]
[336036353,1724675445671,-716.47,0.00012352,2]
[336036354,1724675445682,-623.42,0.00012352,2]
[336036355,1724675445691,-500.0,0.00012352,2]
[336036356,1724675445701,-500.0,0.00012352,2]
[336036357,1724675445710,-500.0,0.00012352,2]
[336036358,1724675445719,-500.0,0.00012352,2]
[336036359,1724675445729,-381.11290446,0.00012352,2]
[336036360,1724675445739,-2326.31,0.00012352,2]
[336036361,1724675445748,-2326.31,0.00012352,2]
[336036362,1724675445758,-620.63,0.00012352,2]
[336036363,1724675445767,-500.0,0.00012352,2]
[336036364,1724675445776,-970.31,0.00012352,2]
[336036365,1724675445786,-916.29,0.00012352,2]
[336036366,1724675445795,-500.0,0.00012352,2]
[336036367,1724675445804,-766.89,0.00012352,2]
[336036368,1724675445813,-808.73,0.00012352,2]
[336036369,1724675445823,-500.0,0.00012352,2]
[336036370,1724675445832,-500.0,0.00012352,2]
[336036371,1724675445841,-500.0,0.00012352,2]
[336036372,1724675445851,-792.22,0.00012352,2]
[336036373,1724675445860,-500.0,0.00012352,2]
[336036374,1724675445870,-500.0,0.00012352,2]
[336036375,1724675445879,-500.0,0.00012352,2]
[336036376,1724675445889,-1220.28,0.00012352,2]